[Event "Titled Tuesday Blitz May 17 Late 2022"]
[White "Adewumi, Tanitoluwa"]
[Black "Kamsky, Gata"]
[WhiteFideId "30966396"]
[BlackFideId "2000024"]
[WhiteElo "2492"]
[BlackElo "2645"]
[Result "1/2-1/2"]
[Round "01"]
[TimeControl "180+1"]
[Date "2022.05.17"]
[WhiteClock "0:00:06"]
[BlackClock "0:00:30"]

1. e4 {[%clk 0:02:59]}  c5 {[%clk 0:02:58]} 2. Nf3 {[%clk 0:02:59]}  e6 {[%clk 0:02:57]} 3. Nc3 {[%clk 0:02:58]}  a6 {[%clk 0:02:57]} 4. d4 {[%clk 0:02:57]}  cxd4 {[%clk 0:02:57]} 5. Nxd4 {[%clk 0:02:58]}  b5 {[%clk 0:02:58]} 6. Be3 {[%clk 0:02:56]}  Bb7 {[%clk 0:02:57]} 7. f3 {[%clk 0:02:54]}  Qc7 {[%clk 0:02:52]} 8. Bd3 {[%clk 0:02:50]}  Nf6 {[%clk 0:02:51]} 9. O-O {[%clk 0:02:48]}  Bc5 {[%clk 0:02:45]} 10. Qe1 {[%clk 0:02:47]}  O-O {[%clk 0:02:41]} 11. Nb3 {[%clk 0:02:35]}  Bxe3+ {[%clk 0:02:33]} 12. Qxe3 {[%clk 0:02:36]}  d6 {[%clk 0:02:32]} 13. Rae1 {[%clk 0:02:23]}  Nbd7 {[%clk 0:02:31]} 14. g4 {[%clk 0:02:12]}  e5 {[%clk 0:02:30]} 15. h3 {[%clk 0:01:56]}  Rac8 {[%clk 0:02:27]} 16. f4 {[%clk 0:01:50]}  exf4 {[%clk 0:02:17]} 17. Rxf4 {[%clk 0:01:51]}  Qb6 {[%clk 0:02:10]} 18. Qxb6 {[%clk 0:01:40]}  Nxb6 {[%clk 0:02:09]} 19. Na5 {[%clk 0:01:38]}  Ba8 {[%clk 0:02:08]} 20. e5 {[%clk 0:01:18]}  Rfe8 {[%clk 0:01:54]} 21. Bf5 {[%clk 0:00:58]}  Rxe5 {[%clk 0:01:20]} 22. Rxe5 {[%clk 0:00:53]}  dxe5 {[%clk 0:01:20]} 23. Bxc8 {[%clk 0:00:54]}  exf4 {[%clk 0:01:21]} 24. Bxa6 {[%clk 0:00:54]}  b4 {[%clk 0:01:21]} 25. Ne2 {[%clk 0:00:50]}  g5 {[%clk 0:01:20]} 26. Bd3 {[%clk 0:00:46]}  h5 {[%clk 0:01:17]} 27. gxh5 {[%clk 0:00:43]}  Nxh5 {[%clk 0:01:18]} 28. Kf2 {[%clk 0:00:43]}  Bd5 {[%clk 0:01:15]} 29. c4 {[%clk 0:00:38]}  bxc3 {[%clk 0:01:14]} 30. Nxc3 {[%clk 0:00:38]}  Be6 {[%clk 0:01:13]} 31. a4 {[%clk 0:00:32]}  Bxh3 {[%clk 0:01:10]} 32. Nc6 {[%clk 0:00:27]}  Bd7 {[%clk 0:01:03]} 33. a5 {[%clk 0:00:17]}  Bxc6 {[%clk 0:01:00]} 34. axb6 {[%clk 0:00:16]}  Nf6 {[%clk 0:01:00]} 35. Bb5 {[%clk 0:00:16]}  Bb7 {[%clk 0:00:55]} 36. Na4 {[%clk 0:00:16]}  Ne4+ {[%clk 0:00:50]} 37. Kg1 {[%clk 0:00:16]}  f3 {[%clk 0:00:49]} 38. Bd3 {[%clk 0:00:17]}  Nd6 {[%clk 0:00:47]} 39. Nc5 {[%clk 0:00:16]}  Bd5 {[%clk 0:00:46]} 40. Ba6 {[%clk 0:00:05]}  g4 {[%clk 0:00:46]} 41. b7 {[%clk 0:00:03]}  Bxb7 {[%clk 0:00:41]} 42. Bxb7 {[%clk 0:00:04]}  f5 {[%clk 0:00:37]} 43. Kf2 {[%clk 0:00:03]}  Kf7 {[%clk 0:00:34]} 44. Bd5+ {[%clk 0:00:04]}  Kf6 {[%clk 0:00:33]} 45. Nd3 {[%clk 0:00:04]}  Kg5 {[%clk 0:00:32]} 46. b4 {[%clk 0:00:04]}  f4 {[%clk 0:00:31]} 47. b5 {[%clk 0:00:04]}  Nxb5 {[%clk 0:00:30]} 48. Bxf3 {[%clk 0:00:04]}  gxf3 {[%clk 0:00:30]} 49. Kxf3 {[%clk 0:00:05]}  Nd4+ {[%clk 0:00:30]} 50. Kf2 {[%clk 0:00:05]}  Kf5 {[%clk 0:00:30]} 51. Nxf4 {[%clk 0:00:06]} 1/2-1/2


[Site "https://www.chess.com"]

[Event "Titled Tuesday Blitz May 17 Late 2022"]
[White "Andreikin, Dmitry"]
[Black "Pinheiro, Iung Alicio de O."]
[WhiteFideId "4158814"]
[BlackFideId "2104350"]
[WhiteElo "2736"]
[BlackElo "2283"]
[Result "1-0"]
[Round "01"]
[TimeControl "180+1"]
[Date "2022.05.17"]
[WhiteClock "0:02:34"]
[BlackClock "0:00:56"]

1. d4 {[%clk 0:03:00]}  Nf6 {[%clk 0:02:59]} 2. c4 {[%clk 0:03:01]}  g6 {[%clk 0:02:58]} 3. Nc3 {[%clk 0:03:00]}  d5 {[%clk 0:02:59]} 4. cxd5 {[%clk 0:03:00]}  Nxd5 {[%clk 0:02:58]} 5. e4 {[%clk 0:03:00]}  Nxc3 {[%clk 0:02:59]} 6. bxc3 {[%clk 0:03:01]}  Bg7 {[%clk 0:02:59]} 7. Be3 {[%clk 0:03:00]}  c5 {[%clk 0:03:00]} 8. Qd2 {[%clk 0:03:00]}  Qa5 {[%clk 0:02:59]} 9. Rc1 {[%clk 0:02:57]}  O-O {[%clk 0:02:58]} 10. Nf3 {[%clk 0:02:57]}  Rd8 {[%clk 0:02:56]} 11. d5 {[%clk 0:02:57]}  e6 {[%clk 0:02:54]} 12. Bg5 {[%clk 0:02:57]}  f6 {[%clk 0:02:53]} 13. Be3 {[%clk 0:02:52]}  exd5 {[%clk 0:01:54]} 14. exd5 {[%clk 0:02:53]}  Bg4 {[%clk 0:01:42]} 15. Bc4 {[%clk 0:02:43]}  Nc6 {[%clk 0:01:11]} 16. dxc6+ {[%clk 0:02:42]}  Kh8 {[%clk 0:01:09]} 17. cxb7 {[%clk 0:02:41]}  Rab8 {[%clk 0:01:07]} 18. Qe2 {[%clk 0:02:41]}  Rxb7 {[%clk 0:01:04]} 19. O-O {[%clk 0:02:41]}  h5 {[%clk 0:00:58]} 20. h3 {[%clk 0:02:40]}  Bf5 {[%clk 0:00:57]} 21. Nh4 {[%clk 0:02:37]}  Be4 {[%clk 0:00:56]} 22. f3 {[%clk 0:02:34]} 1-0


[Site "https://www.chess.com"]

[Event "Titled Tuesday Blitz May 17 Late 2022"]
[White "Baches Garcia, Guillermo"]
[Black "Babazada, Khazar"]
[WhiteFideId "2209764"]
[BlackFideId "13413554"]
[WhiteElo "2505"]
[BlackElo "2406"]
[Result "0-1"]
[Round "01"]
[TimeControl "180+1"]
[Date "2022.05.17"]
[WhiteClock "0:00:05"]
[BlackClock "0:00:54"]

1. e4 {[%clk 0:03:00]}  Nf6 {[%clk 0:02:57]} 2. Nc3 {[%clk 0:02:59]}  d5 {[%clk 0:02:56]} 3. e5 {[%clk 0:02:59]}  Nfd7 {[%clk 0:02:55]} 4. d4 {[%clk 0:02:56]}  c5 {[%clk 0:02:54]} 5. f4 {[%clk 0:02:44]}  cxd4 {[%clk 0:02:52]} 6. Qxd4 {[%clk 0:02:43]}  e6 {[%clk 0:02:52]} 7. Be3 {[%clk 0:02:39]}  Bc5 {[%clk 0:02:50]} 8. Qd2 {[%clk 0:02:36]}  Bxe3 {[%clk 0:02:50]} 9. Qxe3 {[%clk 0:02:37]}  Nc6 {[%clk 0:02:51]} 10. Nf3 {[%clk 0:02:34]}  a6 {[%clk 0:02:50]} 11. O-O-O {[%clk 0:02:27]}  Qb6 {[%clk 0:02:48]} 12. Qe1 {[%clk 0:02:15]}  g6 {[%clk 0:02:03]} 13. Bd3 {[%clk 0:02:08]}  Nc5 {[%clk 0:01:59]} 14. Kb1 {[%clk 0:02:01]}  Bd7 {[%clk 0:01:56]} 15. g4 {[%clk 0:01:55]}  O-O-O {[%clk 0:01:51]} 16. Ne2 {[%clk 0:01:45]}  Kb8 {[%clk 0:01:44]} 17. Qf2 {[%clk 0:01:22]}  Rc8 {[%clk 0:01:41]} 18. Nfd4 {[%clk 0:01:10]}  Nb4 {[%clk 0:01:39]} 19. Qe3 {[%clk 0:00:53]}  Rc7 {[%clk 0:01:32]} 20. a3 {[%clk 0:00:33]}  Nbxd3 {[%clk 0:01:28]} 21. cxd3 {[%clk 0:00:34]}  Rhc8 {[%clk 0:01:29]} 22. Rc1 {[%clk 0:00:30]}  Bb5 {[%clk 0:01:14]} 23. Nxb5 {[%clk 0:00:18]}  Qxb5 {[%clk 0:01:15]} 24. Rhd1 {[%clk 0:00:11]}  Nb3 {[%clk 0:01:07]} 25. Rxc7 {[%clk 0:00:09]}  Rxc7 {[%clk 0:01:08]} 26. Nc1 {[%clk 0:00:07]}  d4 {[%clk 0:00:53]} 27. Qe2 {[%clk 0:00:07]}  Nc5 {[%clk 0:00:54]} 28. Rd2 {[%clk 0:00:05]}  Na4 {[%clk 0:00:54]} 0-1


[Site "https://www.chess.com"]

[Event "Titled Tuesday Blitz May 17 Late 2022"]
[White "Bluebaum, Matthias"]
[Black "Atanasov, Anthony"]
[WhiteFideId "24651516"]
[BlackFideId "2623897"]
[WhiteElo "2556"]
[BlackElo "1928"]
[Result "1-0"]
[Round "01"]
[TimeControl "180+1"]
[Date "2022.05.17"]
[WhiteClock "0:02:48"]
[BlackClock "0:01:59"]

1. d4 {[%clk 0:03:00]}  Nf6 {[%clk 0:02:59]} 2. c4 {[%clk 0:03:01]}  g6 {[%clk 0:02:59]} 3. Nc3 {[%clk 0:03:02]}  d5 {[%clk 0:02:59]} 4. cxd5 {[%clk 0:03:01]}  Nxd5 {[%clk 0:03:00]} 5. e4 {[%clk 0:03:02]}  Nxc3 {[%clk 0:03:01]} 6. bxc3 {[%clk 0:03:03]}  Bg7 {[%clk 0:03:01]} 7. Bc4 {[%clk 0:03:03]}  c5 {[%clk 0:03:01]} 8. Ne2 {[%clk 0:03:04]}  O-O {[%clk 0:03:02]} 9. Be3 {[%clk 0:03:05]}  Nc6 {[%clk 0:03:02]} 10. Rc1 {[%clk 0:03:05]}  cxd4 {[%clk 0:02:55]} 11. cxd4 {[%clk 0:03:06]}  Qa5+ {[%clk 0:02:55]} 12. Rc3 {[%clk 0:03:06]}  Rd8 {[%clk 0:02:48]} 13. Qd2 {[%clk 0:03:05]}  Nxd4 {[%clk 0:02:03]} 14. Nxd4 {[%clk 0:02:57]}  Bxd4 {[%clk 0:02:01]} 15. Bxd4 {[%clk 0:02:55]}  e5 {[%clk 0:02:01]} 16. Bxf7+ {[%clk 0:02:48]}  Kxf7 {[%clk 0:01:59]} 17. Rf3+ {[%clk 0:02:48]} 1-0


[Site "https://www.chess.com"]

[Event "Titled Tuesday Blitz May 17 Late 2022"]
[White "Bortnyk, Olexandr"]
[Black "McCoy, Owen"]
[WhiteFideId "14120828"]
[BlackFideId "30924502"]
[WhiteElo "2723"]
[BlackElo "2538"]
[Result "1-0"]
[Round "01"]
[TimeControl "180+1"]
[Date "2022.05.17"]
[WhiteClock "0:02:16"]
[BlackClock "0:00:15"]

1. e4 {[%clk 0:03:00]}  e5 {[%clk 0:02:50]} 2. Bc4 {[%clk 0:02:58]}  Nf6 {[%clk 0:02:47]} 3. d3 {[%clk 0:02:58]}  c6 {[%clk 0:02:46]} 4. Nf3 {[%clk 0:02:57]}  d5 {[%clk 0:02:45]} 5. Bb3 {[%clk 0:02:57]}  Bb4+ {[%clk 0:02:28]} 6. Bd2 {[%clk 0:02:54]}  Bd6 {[%clk 0:02:10]} 7. Nc3 {[%clk 0:02:51]}  d4 {[%clk 0:02:04]} 8. Ne2 {[%clk 0:02:51]}  O-O {[%clk 0:01:53]} 9. h3 {[%clk 0:02:49]}  Nfd7 {[%clk 0:01:30]} 10. g4 {[%clk 0:02:43]}  Nc5 {[%clk 0:01:29]} 11. Ng3 {[%clk 0:02:43]}  a5 {[%clk 0:01:26]} 12. a3 {[%clk 0:02:41]}  Nxb3 {[%clk 0:01:26]} 13. cxb3 {[%clk 0:02:42]}  b6 {[%clk 0:01:15]} 14. Nf5 {[%clk 0:02:39]}  Bc7 {[%clk 0:01:15]} 15. Qc1 {[%clk 0:02:33]}  Ba6 {[%clk 0:01:10]} 16. Bh6 {[%clk 0:02:32]}  g6 {[%clk 0:00:57]} 17. Bg7 {[%clk 0:02:23]}  gxf5 {[%clk 0:00:38]} 18. Qh6 {[%clk 0:02:22]}  f6 {[%clk 0:00:29]} 19. gxf5 {[%clk 0:02:21]}  Kf7 {[%clk 0:00:25]} 20. Qxh7 {[%clk 0:02:20]}  Nd7 {[%clk 0:00:18]} 21. Bxf8+ {[%clk 0:02:18]}  Kxf8 {[%clk 0:00:16]} 22. Rg1 {[%clk 0:02:19]}  Ke8 {[%clk 0:00:16]} 23. Rg7 {[%clk 0:02:15]}  Nf8 {[%clk 0:00:14]} 24. Qh5+ {[%clk 0:02:15]}  Ng6 {[%clk 0:00:14]} 25. Qxg6+ {[%clk 0:02:16]}  Kf8 {[%clk 0:00:15]} 26. Qf7# {[%clk 0:02:16]} 1-0


[Site "https://www.chess.com"]

[Event "Titled Tuesday Blitz May 17 Late 2022"]
[White "Chigaev, Maksim"]
[Black "Jegorovas, Aleksandras"]
[WhiteFideId "4108116"]
[BlackFideId "12801950"]
[WhiteElo "2457"]
[BlackElo "2247"]
[Result "1-0"]
[Round "01"]
[TimeControl "180+1"]
[Date "2022.05.17"]
[WhiteClock "0:00:23"]
[BlackClock "0:00:10"]

1. e4 {[%clk 0:03:00]}  e6 {[%clk 0:02:55]} 2. d4 {[%clk 0:03:00]}  d5 {[%clk 0:02:55]} 3. Bd3 {[%clk 0:03:01]}  dxe4 {[%clk 0:02:54]} 4. Bxe4 {[%clk 0:03:02]}  Nf6 {[%clk 0:02:54]} 5. Bf3 {[%clk 0:03:02]}  c5 {[%clk 0:02:47]} 6. Ne2 {[%clk 0:03:02]}  Nc6 {[%clk 0:02:45]} 7. Be3 {[%clk 0:03:03]}  cxd4 {[%clk 0:02:45]} 8. Nxd4 {[%clk 0:03:04]}  Ne5 {[%clk 0:02:44]} 9. Nc3 {[%clk 0:03:04]}  a6 {[%clk 0:02:41]} 10. Qe2 {[%clk 0:03:04]}  Nxf3+ {[%clk 0:02:41]} 11. gxf3 {[%clk 0:03:04]}  Bb4 {[%clk 0:02:17]} 12. O-O-O {[%clk 0:03:03]}  Qa5 {[%clk 0:02:16]} 13. Nb3 {[%clk 0:02:59]}  Qc7 {[%clk 0:02:10]} 14. Bd4 {[%clk 0:02:59]}  Bd7 {[%clk 0:01:57]} 15. Rhg1 {[%clk 0:02:58]}  O-O-O {[%clk 0:01:16]} 16. Rxg7 {[%clk 0:02:56]}  Be8 {[%clk 0:01:15]} 17. Kb1 {[%clk 0:02:45]}  Bxc3 {[%clk 0:01:09]} 18. Bxc3 {[%clk 0:02:42]}  Nd5 {[%clk 0:01:01]} 19. Be5 {[%clk 0:02:36]}  Bb5 {[%clk 0:00:44]} 20. Qe1 {[%clk 0:01:46]}  Qc4 {[%clk 0:00:32]} 21. Rxf7 {[%clk 0:01:16]}  Rhf8 {[%clk 0:00:31]} 22. Rxf8 {[%clk 0:01:08]}  Rxf8 {[%clk 0:00:31]} 23. Rd4 {[%clk 0:00:45]}  Qe2 {[%clk 0:00:22]} 24. Qxe2 {[%clk 0:00:45]}  Bxe2 {[%clk 0:00:22]} 25. Bg3 {[%clk 0:00:39]}  Bxf3 {[%clk 0:00:19]} 26. Nc5 {[%clk 0:00:39]}  Bg4 {[%clk 0:00:17]} 27. a3 {[%clk 0:00:31]}  b6 {[%clk 0:00:17]} 28. Ne4 {[%clk 0:00:30]}  Kb7 {[%clk 0:00:16]} 29. c4 {[%clk 0:00:31]}  Nf4 {[%clk 0:00:15]} 30. Bxf4 {[%clk 0:00:29]}  Bf5 {[%clk 0:00:10]} 31. Ka2 {[%clk 0:00:23]} 1-0


[Site "https://www.chess.com"]

[Event "Titled Tuesday Blitz May 17 Late 2022"]
[White "Drygalov, Sergey"]
[Black "Wagner, Dinara"]
[WhiteFideId "24171743"]
[BlackFideId "24157570"]
[WhiteElo "2514"]
[BlackElo "2216"]
[Result "1/2-1/2"]
[Round "01"]
[TimeControl "180+1"]
[Date "2022.05.17"]
[WhiteClock "0:00:13"]
[BlackClock "0:00:06"]

1. d4 {[%clk 0:02:53]}  Nf6 {[%clk 0:02:44]} 2. c4 {[%clk 0:02:51]}  e6 {[%clk 0:02:44]} 3. Nf3 {[%clk 0:02:52]}  d5 {[%clk 0:02:44]} 4. Nc3 {[%clk 0:02:52]}  dxc4 {[%clk 0:02:44]} 5. e4 {[%clk 0:02:52]}  Bb4 {[%clk 0:02:42]} 6. Bxc4 {[%clk 0:02:52]}  Nxe4 {[%clk 0:02:42]} 7. O-O {[%clk 0:02:53]}  Nf6 {[%clk 0:02:43]} 8. Qa4+ {[%clk 0:02:53]}  Nc6 {[%clk 0:02:42]} 9. Ne5 {[%clk 0:02:53]}  Rb8 {[%clk 0:02:39]} 10. Nxc6 {[%clk 0:02:52]}  bxc6 {[%clk 0:02:39]} 11. Qxa7 {[%clk 0:02:51]}  Bd7 {[%clk 0:02:22]} 12. Bf4 {[%clk 0:02:49]}  Bd6 {[%clk 0:02:22]} 13. Bxd6 {[%clk 0:02:39]}  cxd6 {[%clk 0:02:22]} 14. Qa3 {[%clk 0:02:39]}  Qe7 {[%clk 0:02:20]} 15. Be2 {[%clk 0:02:07]}  O-O {[%clk 0:02:18]} 16. b3 {[%clk 0:02:07]}  e5 {[%clk 0:02:03]} 17. dxe5 {[%clk 0:02:07]}  Qxe5 {[%clk 0:02:03]} 18. Rac1 {[%clk 0:02:07]}  Bg4 {[%clk 0:01:53]} 19. Rfe1 {[%clk 0:02:03]}  Bxe2 {[%clk 0:01:42]} 20. Rxe2 {[%clk 0:02:03]}  Qd4 {[%clk 0:01:43]} 21. Qb2 {[%clk 0:02:01]}  Rfe8 {[%clk 0:01:35]} 22. Rd2 {[%clk 0:02:02]}  Qe5 {[%clk 0:01:32]} 23. h3 {[%clk 0:02:02]}  d5 {[%clk 0:01:31]} 24. Na4 {[%clk 0:02:00]}  Qd6 {[%clk 0:01:31]} 25. Rdc2 {[%clk 0:01:59]}  Rbc8 {[%clk 0:01:29]} 26. Nc5 {[%clk 0:01:58]}  Ne4 {[%clk 0:01:26]} 27. b4 {[%clk 0:01:52]}  Qf4 {[%clk 0:01:13]} 28. Nd3 {[%clk 0:01:44]}  Qh6 {[%clk 0:00:58]} 29. Qd4 {[%clk 0:01:41]}  Ng5 {[%clk 0:00:55]} 30. b5 {[%clk 0:01:34]}  c5 {[%clk 0:00:43]} 31. Nxc5 {[%clk 0:01:25]}  Qg6 {[%clk 0:00:43]} 32. Kh1 {[%clk 0:01:23]}  Rcd8 {[%clk 0:00:39]} 33. a4 {[%clk 0:01:23]}  h5 {[%clk 0:00:38]} 34. a5 {[%clk 0:01:22]}  Qf5 {[%clk 0:00:19]} 35. b6 {[%clk 0:01:22]}  Nxh3 {[%clk 0:00:17]} 36. gxh3 {[%clk 0:01:19]}  Qxh3+ {[%clk 0:00:17]} 37. Kg1 {[%clk 0:01:19]}  Rd6 {[%clk 0:00:16]} 38. Qd3 {[%clk 0:00:39]}  Rg6+ {[%clk 0:00:15]} 39. Qxg6 {[%clk 0:00:39]}  fxg6 {[%clk 0:00:16]} 40. Rc3 {[%clk 0:00:40]}  Qg4+ {[%clk 0:00:12]} 41. Rg3 {[%clk 0:00:40]}  Qf4 {[%clk 0:00:12]} 42. Rf1 {[%clk 0:00:36]}  h4 {[%clk 0:00:11]} 43. Rg2 {[%clk 0:00:36]}  h3 {[%clk 0:00:11]} 44. Rg3 {[%clk 0:00:37]}  Re2 {[%clk 0:00:06]} 45. Rxh3 {[%clk 0:00:35]}  Qd4 {[%clk 0:00:04]} 46. Nd3 {[%clk 0:00:30]}  Ra2 {[%clk 0:00:03]} 47. b7 {[%clk 0:00:28]}  Qa7 {[%clk 0:00:03]} 48. Rb1 {[%clk 0:00:26]}  Qb8 {[%clk 0:00:03]} 49. Nc5 {[%clk 0:00:24]}  Rxa5 {[%clk 0:00:01]} 50. Nd7 {[%clk 0:00:24]}  Ra1 {[%clk 0:00:02]} 51. Nxb8 {[%clk 0:00:21]}  Rxb1+ {[%clk 0:00:01]} 52. Kg2 {[%clk 0:00:22]}  Rxb7 {[%clk 0:00:02]} 53. Nc6 {[%clk 0:00:22]}  Kf7 {[%clk 0:00:02]} 54. Nd4 {[%clk 0:00:18]}  Kf6 {[%clk 0:00:02]} 55. Re3 {[%clk 0:00:18]}  Kg5 {[%clk 0:00:02]} 56. Nf3+ {[%clk 0:00:18]}  Kf5 {[%clk 0:00:02]} 57. Rd3 {[%clk 0:00:18]}  Rb5 {[%clk 0:00:02]} 58. Nd4+ {[%clk 0:00:18]}  Ke4 {[%clk 0:00:02]} 59. Nxb5 {[%clk 0:00:18]}  Kxd3 {[%clk 0:00:03]} 60. Kf3 {[%clk 0:00:19]}  d4 {[%clk 0:00:03]} 61. Nd6 {[%clk 0:00:18]}  Kd2 {[%clk 0:00:03]} 62. Ke4 {[%clk 0:00:17]}  d3 {[%clk 0:00:04]} 63. Nc4+ {[%clk 0:00:13]}  Ke2 {[%clk 0:00:05]} 64. f4 {[%clk 0:00:12]}  d2 {[%clk 0:00:04]} 65. Ne3 {[%clk 0:00:11]}  d1=Q {[%clk 0:00:04]} 66. Nxd1 {[%clk 0:00:11]}  Kxd1 {[%clk 0:00:05]} 67. f5 {[%clk 0:00:11]}  gxf5+ {[%clk 0:00:05]} 68. Kxf5 {[%clk 0:00:12]}  g6+ {[%clk 0:00:06]} 69. Kxg6 {[%clk 0:00:13]} 1/2-1/2


[Site "https://www.chess.com"]

[Event "Titled Tuesday Blitz May 17 Late 2022"]
[White "Grischuk, Alexander"]
[Black "Al-Tarboush, Ward"]
[WhiteFideId "4126025"]
[BlackFideId "7601450"]
[WhiteElo "2762"]
[BlackElo "2294"]
[Result "1-0"]
[Round "01"]
[TimeControl "180+1"]
[Date "2022.05.17"]
[WhiteClock "0:00:55"]
[BlackClock "0:00:05"]

1. d4 {[%clk 0:02:59]}  d5 {[%clk 0:02:59]} 2. Nf3 {[%clk 0:02:59]}  Nf6 {[%clk 0:02:58]} 3. Bf4 {[%clk 0:03:00]}  c5 {[%clk 0:02:57]} 4. e3 {[%clk 0:03:00]}  Nc6 {[%clk 0:02:54]} 5. Nbd2 {[%clk 0:03:00]}  cxd4 {[%clk 0:02:41]} 6. exd4 {[%clk 0:03:01]}  Bg4 {[%clk 0:02:40]} 7. h3 {[%clk 0:02:51]}  Bh5 {[%clk 0:02:37]} 8. c3 {[%clk 0:02:49]}  e6 {[%clk 0:02:36]} 9. Qb3 {[%clk 0:02:48]}  Qc8 {[%clk 0:02:30]} 10. g4 {[%clk 0:02:47]}  Bg6 {[%clk 0:02:29]} 11. Nh4 {[%clk 0:02:48]}  Be7 {[%clk 0:02:27]} 12. Nxg6 {[%clk 0:02:39]}  hxg6 {[%clk 0:02:28]} 13. Bg2 {[%clk 0:02:30]}  a6 {[%clk 0:02:20]} 14. Qd1 {[%clk 0:02:20]}  b5 {[%clk 0:02:17]} 15. Qe2 {[%clk 0:02:07]}  Qd7 {[%clk 0:02:08]} 16. Nb3 {[%clk 0:01:59]}  Qa7 {[%clk 0:01:46]} 17. O-O {[%clk 0:01:49]}  O-O {[%clk 0:01:45]} 18. h4 {[%clk 0:01:45]}  Nh7 {[%clk 0:01:30]} 19. g5 {[%clk 0:01:45]}  Rfd8 {[%clk 0:01:29]} 20. Qg4 {[%clk 0:01:43]}  a5 {[%clk 0:01:24]} 21. Nd2 {[%clk 0:01:40]}  b4 {[%clk 0:01:23]} 22. Nf3 {[%clk 0:01:37]}  a4 {[%clk 0:01:19]} 23. a3 {[%clk 0:01:35]}  bxa3 {[%clk 0:01:19]} 24. bxa3 {[%clk 0:01:35]}  Na5 {[%clk 0:01:19]} 25. Rfe1 {[%clk 0:01:34]}  Nc4 {[%clk 0:01:18]} 26. Ne5 {[%clk 0:01:32]}  Nxe5 {[%clk 0:01:18]} 27. Bxe5 {[%clk 0:01:31]}  Qa5 {[%clk 0:01:18]} 28. Re3 {[%clk 0:01:31]}  Ra7 {[%clk 0:01:16]} 29. Bf1 {[%clk 0:01:25]}  Rb7 {[%clk 0:01:11]} 30. c4 {[%clk 0:01:18]}  Rb3 {[%clk 0:00:52]} 31. Rxb3 {[%clk 0:01:10]}  axb3 {[%clk 0:00:51]} 32. c5 {[%clk 0:01:11]}  b2 {[%clk 0:00:51]} 33. Rb1 {[%clk 0:01:11]}  Qxa3 {[%clk 0:00:51]} 34. Qe2 {[%clk 0:01:12]}  Nf8 {[%clk 0:00:38]} 35. Qxb2 {[%clk 0:01:10]}  Qf3 {[%clk 0:00:38]} 36. Qb3 {[%clk 0:01:05]}  Qg4+ {[%clk 0:00:36]} 37. Qg3 {[%clk 0:01:05]}  Qxg3+ {[%clk 0:00:30]} 38. Bxg3 {[%clk 0:01:06]}  f6 {[%clk 0:00:29]} 39. c6 {[%clk 0:01:04]}  Rc8 {[%clk 0:00:04]} 40. c7 {[%clk 0:01:02]}  e5 {[%clk 0:00:04]} 41. dxe5 {[%clk 0:01:02]}  fxe5 {[%clk 0:00:05]} 42. Bxe5 {[%clk 0:01:00]}  Ne6 {[%clk 0:00:06]} 43. Bh3 {[%clk 0:00:55]}  Kf7 {[%clk 0:00:05]} 44. Rb6 {[%clk 0:00:55]} 1-0


[Site "https://www.chess.com"]

[Event "Titled Tuesday Blitz May 17 Late 2022"]
[White "Hamley, Ryan"]
[Black "Dubov, Daniil"]
[WhiteFideId "30959497"]
[BlackFideId "24126055"]
[WhiteElo "2539"]
[BlackElo "2791"]
[Result "0-1"]
[Round "01"]
[TimeControl "180+1"]
[Date "2022.05.17"]
[WhiteClock "0:00:01"]
[BlackClock "0:01:24"]

1. d4 {[%clk 0:03:00]}  Nf6 {[%clk 0:02:55]} 2. Nf3 {[%clk 0:03:00]}  e6 {[%clk 0:02:55]} 3. Bf4 {[%clk 0:03:00]}  d5 {[%clk 0:02:56]} 4. e3 {[%clk 0:02:59]}  Be7 {[%clk 0:02:55]} 5. Bd3 {[%clk 0:02:59]}  O-O {[%clk 0:02:55]} 6. O-O {[%clk 0:02:59]}  b6 {[%clk 0:02:55]} 7. h3 {[%clk 0:02:59]}  Ba6 {[%clk 0:02:55]} 8. Ne5 {[%clk 0:02:55]}  Bxd3 {[%clk 0:02:53]} 9. Qxd3 {[%clk 0:02:55]}  Nfd7 {[%clk 0:02:53]} 10. Nf3 {[%clk 0:02:48]}  c5 {[%clk 0:02:53]} 11. c3 {[%clk 0:02:48]}  Nc6 {[%clk 0:02:48]} 12. Nbd2 {[%clk 0:02:48]}  c4 {[%clk 0:02:48]} 13. Qc2 {[%clk 0:02:47]}  f5 {[%clk 0:02:47]} 14. Bg3 {[%clk 0:02:27]}  b5 {[%clk 0:02:46]} 15. b3 {[%clk 0:02:03]}  a6 {[%clk 0:02:42]} 16. Nh2 {[%clk 0:01:50]}  Qc8 {[%clk 0:02:38]} 17. f3 {[%clk 0:01:37]}  cxb3 {[%clk 0:02:37]} 18. axb3 {[%clk 0:01:32]}  Nb4 {[%clk 0:02:32]} 19. Qb2 {[%clk 0:01:32]}  f4 {[%clk 0:02:30]} 20. Bxf4 {[%clk 0:01:01]}  Nd3 {[%clk 0:02:30]} 21. Qc2 {[%clk 0:01:02]}  Nxf4 {[%clk 0:02:29]} 22. exf4 {[%clk 0:01:02]}  Rxf4 {[%clk 0:02:29]} 23. Rfe1 {[%clk 0:01:03]}  Qc6 {[%clk 0:02:27]} 24. Qd3 {[%clk 0:01:01]}  Rc8 {[%clk 0:02:26]} 25. Rac1 {[%clk 0:00:58]}  Ba3 {[%clk 0:02:10]} 26. Rc2 {[%clk 0:00:56]}  Rxd4 {[%clk 0:02:10]} 27. Qe3 {[%clk 0:00:28]}  Nf8 {[%clk 0:01:59]} 28. Ra1 {[%clk 0:00:19]}  Bd6 {[%clk 0:01:49]} 29. cxd4 {[%clk 0:00:14]}  Qxc2 {[%clk 0:01:48]} 30. Rxa6 {[%clk 0:00:14]}  Rc3 {[%clk 0:01:42]} 31. Qf2 {[%clk 0:00:11]}  Bf4 {[%clk 0:01:40]} 32. Nhf1 {[%clk 0:00:11]}  Rd3 {[%clk 0:01:40]} 33. Ne4 {[%clk 0:00:08]}  Qc1 {[%clk 0:01:32]} 34. Nc5 {[%clk 0:00:05]}  Rd1 {[%clk 0:01:26]} 35. g3 {[%clk 0:00:01]}  Be3 {[%clk 0:01:24]} 0-1


[Site "https://www.chess.com"]

[Event "Titled Tuesday Blitz May 17 Late 2022"]
[White "Hansen, Eric"]
[Black "Prohorov, Olexandr"]
[WhiteFideId "2606771"]
[BlackFideId "14105578"]
[WhiteElo "2568"]
[BlackElo "1993"]
[Result "1-0"]
[Round "01"]
[TimeControl "180+1"]
[Date "2022.05.17"]
[WhiteClock "0:01:46"]
[BlackClock "0:01:39"]

1. b3 {[%clk 0:02:55]}  Nf6 {[%clk 0:02:59]} 2. Bb2 {[%clk 0:02:54]}  g6 {[%clk 0:02:59]} 3. c4 {[%clk 0:02:52]}  Bg7 {[%clk 0:02:59]} 4. g3 {[%clk 0:02:53]}  O-O {[%clk 0:02:59]} 5. Bg2 {[%clk 0:02:53]}  d6 {[%clk 0:02:58]} 6. d4 {[%clk 0:02:48]}  Bf5 {[%clk 0:02:49]} 7. Nc3 {[%clk 0:02:47]}  c6 {[%clk 0:02:49]} 8. e4 {[%clk 0:02:45]}  Bg4 {[%clk 0:02:48]} 9. f3 {[%clk 0:02:46]}  Bd7 {[%clk 0:02:48]} 10. Nge2 {[%clk 0:02:47]}  Qc8 {[%clk 0:02:48]} 11. O-O {[%clk 0:02:46]}  Bh3 {[%clk 0:02:47]} 12. e5 {[%clk 0:02:32]}  Ne8 {[%clk 0:02:42]} 13. Ne4 {[%clk 0:02:30]}  Bxg2 {[%clk 0:02:41]} 14. Kxg2 {[%clk 0:02:31]}  d5 {[%clk 0:02:38]} 15. Nf2 {[%clk 0:02:18]}  Na6 {[%clk 0:02:34]} 16. Ba3 {[%clk 0:02:16]}  Qd8 {[%clk 0:02:32]} 17. Rc1 {[%clk 0:02:15]}  b5 {[%clk 0:02:26]} 18. Nf4 {[%clk 0:02:09]}  Bh6 {[%clk 0:02:17]} 19. Qd2 {[%clk 0:02:08]}  Rb8 {[%clk 0:02:14]} 20. Ng4 {[%clk 0:02:08]}  Bg7 {[%clk 0:02:12]} 21. cxd5 {[%clk 0:02:06]}  cxd5 {[%clk 0:02:12]} 22. h4 {[%clk 0:01:55]}  h5 {[%clk 0:02:06]} 23. Ne3 {[%clk 0:01:56]}  b4 {[%clk 0:02:05]} 24. Bb2 {[%clk 0:01:55]}  e6 {[%clk 0:01:57]} 25. Rc6 {[%clk 0:01:47]}  Rb6 {[%clk 0:01:56]} 26. Rfc1 {[%clk 0:01:46]}  Rxc6 {[%clk 0:01:38]} 27. Rxc6 {[%clk 0:01:46]}  Qd7 {[%clk 0:01:39]} 28. Rxa6 {[%clk 0:01:46]} 1-0


[Site "https://www.chess.com"]